Cogmind - Beta 16 @@@ ROGUE MODE // 2026.01.25 @ 15:50:43 Player: Kimbo Result: Destroyed by Y-45 Defender with Beam Rifle Performance ------------- Evolutions (1) 500 Regions Visited (2) 400 Robots Destroyed (21) 105 Value Destroyed (390) 390 Prototype IDs (1) 20 Alien Tech Used (0) 0 Bonus (0) 0 TOTAL SCORE: 1415 Bonus ------- None Cogmind --------- Core Integrity 0/400 Matter 25/300 Energy 100/100 System Corruption 0% Temperature Cool (24) Movement Core (1350) Ox26 Location -9/Materials Parts ------- > --- POWER (1) -------- (None) > --- PROPULSION (3) --- (None) > --- UTILITY (3) ------ Huge Storage Unit Signal Interpreter Targeting Computer > --- WEAPON (2) ------- (None) > --- INVENTORY (25) --- Heavy Ion Engine Small Laser Light Assault Rifle Rocket Launcher Rocket Launcher Peak State ------------ > --- POWER ------------ Ion Engine > --- PROPULSION ------- Light Treads Improved Treads Improved Treads > --- UTILITY ---------- Huge Storage Unit Signal Interpreter Targeting Computer > --- WEAPON ----------- Light Assault Rifle Rocket Launcher > --- INVENTORY -------- Light Ion Engine Heavy Ion Engine Small Laser Particle Cannon Light Assault Rifle Rocket Launcher [Rating: 13] Favorites ----------- Power Ion Engine Engine Ion Engine Propulsion Light Treads Treads Light Treads Wheel Wheel Utility Signal Interpreter Storage Small Storage Unit Processor Signal Interpreter Weapon Light Assault Rifle Energy Gun Small Laser Energy Cannon Particle Cannon Ballistic Gun Light Assault Rifle Launcher Grenade Launcher Build | -11 -10 -9 ------- Run | Yrd Mat Mat Slots Evolved 2 | . . 2 Power . | . . . Propulsion 1 | . . 1 Utility 1 | . . 1 Weapon . | . . . Parts Attached 20 | 5 4 11 Power 4 | . 1 3 Engine 4 | . 1 3 Core . | . . . Reactor . | . . . Propulsion 6 | 2 . 4 Treads 4 | 2 . 2 Leg . | . . . Wheel 2 | . . 2 Hover . | . . . Flight . | . . . Utility 4 | 1 1 2 Device . | . . . Storage 2 | 1 . 1 Processor 2 | . 1 1 Hackware . | . . . Protection . | . . . Artifact . | . . . Weapon 6 | 2 2 2 Energy Gun 1 | 1 . . Energy Cannon 1 | . . 1 Ballistic Gun 2 | 1 1 . Ballistic Cannon . | . . . Launcher 2 | . 1 1 Special Weapon . | . . . Impact Weapon . | . . . Slashing Weapon . | . . . Piercing Weapon . | . . . Special Melee Weapon . | . . . Unidentified Prototypes 1 | . . 1 Parts Lost 13 | . . 13 Power 4 | . . 4 Propulsion 6 | . . 6 Utility . | . . . Weapon 3 | . . 3 Highest Loss Streak 5 | . . 5 To Critical Strikes . | . . . Average Backups 5 | 3 6 5 Power 2 | 1 2 1 Propulsion 1 | 1 2 . Utility . | . . . Weapon 2 | . 1 3 Tool/Special . | . . . Unused Backups 2 | . . 2 Power 1 | . . 1 Propulsion . | . . . Utility . | . . . Weapon 1 | . . 1 Tool/Special . | . . . Average Slot Usage (%) 81 | . 80 81 Engine 6 | . 1 9 Treads 21 | . 28 16 Wheel 4 | . . 7 Storage 12 | . 14 11 Processor 12 | . 8 14 Energy Cannon 1 | . . 2 Ballistic Gun 12 | . 16 10 Launcher 9 | . 11 8 Peak Build Rating 13 | 5 7 13 Average Rating 7 | 4 5 9 On Entrance 4 | . 5 7 Avg Prop Armor Cover (%) 11 | . . 11 Naked Turns . | . . . Heaviest Build 92 | 7 14 92 Greatest Support 66 | 40 40 66 Greatest Overweight (x) 26 | 1 . 26 Average Overweight (x) 1 | . . 3 Largest Inventory Capacity 25 | 8 8 25 Average Capacity 15 | 7 8 23 Most Carried 8 | 6 8 8 Average Carried 5 | 3 6 5 Final Capacity 25 | 8 8 25 Final Carried 6 | 6 6 5 Class Distribution -------------------- 100% | Mutant Dominant Class ---------------- Mutant | -10/Materials Mutant | -9/Materials Resources | -11 -10 -9 ----------- Run | Yrd Mat Mat Matter Collected 405 | 259 17 129 Remotely . | . . . Salvage Created 379 | 87 68 224 Parts 28 | 6 6 16 Haulers Intercepted . | . . . Recyclers Shooed 1 | . . 1 Parts Field Recycled . | . . . Retrieved Matter . | . . . Parts Self-Destructed . | . . . Prevented . | . . . Parts Restored . | . . . Kills | -11 -10 -9 ------- Run | Yrd Mat Mat Combat Hostiles Destroyed 9 | . 5 4 AOE 9 | . 5 4 Classes Destroyed 8 | 3 3 2 Worker 6 | 1 2 3 Builder 1 | . . 1 Tunneler 1 | 1 . . Recycler 2 | 1 . 1 Watcher 2 | . 1 1 Swarmer 3 | . 3 . Grunt 5 | . 2 3 Sentry 1 | . . 1 Best Kill Streak 6 | 2 3 6 Combat Bots Only 3 | . 3 3 Max Kills in Single Turn 2 | 1 2 2 Gunslinging . | . . . Exploded 2 | . 2 1 Melee . | . . . Uniques/NPCs Destroyed . | . . . Combat | -11 -10 -9 -------- Run | Yrd Mat Mat Hostile Shots Fired 170 | . 18 152 Missed 50 | . 5 45 Hits 120 | . 13 107 Projectile 120 | . 13 107 Critical Strikes 4 | . . 4 Damage Taken 1683 | . 175 1508 Core 407 | . . 407 Absorbed by Shields . | . . . Core Remaining (%) 100 | 100 100 . Volleys Fired 41 | 9 13 19 Largest 2 | 2 2 2 Hottest 60 | 60 50 53 Shots Fired 76 | 18 26 32 Gun 52 | 18 15 19 Cannon . | . . . Launcher 24 | . 11 13 Special . | . . . Kinetic 43 | 9 15 19 Thermal 9 | 9 . . Explosive 24 | . 11 13 Electromagnetic . | . . . Robot Hit Streak 13 | 2 13 6 Robot Miss Streak 4 | 4 2 3 Penetration Max . | . . . Secondary Targets . | . . . Shots Hit Robots 38 | 7 14 17 Core Hits 31 | 5 10 16 Critical Kills . | . . . Critical Parts Destroyed . | . . . Critical Strikes . | . . . Melee Attacks . | . . . Impact . | . . . Slashing . | . . . Piercing . | . . . Sneak Attacks . | . . . Combat Hostiles . | . . . Follow-up Attacks . | . . . Damage Inflicted 1393 | 70 546 777 Guns 218 | 70 59 89 Cannons . | . . . Explosions 1175 | . 487 688 Melee . | . . . Ramming . | . . . Kinetic 185 | 37 59 89 Thermal 33 | 33 . . Explosive 1175 | . 487 688 Electromagnetic . | . . . Impact . | . . . Slashing . | . . . Piercing . | . . . Highest Corruption . | . . . Average Corruption . | . . . Corruption Purged . | . . . Corruption Blocked . | . . . Overload Shots . | . . . Overflow Damage 74 | . 8 66 Projectiles . | . . . Explosions 74 | . 8 66 Melee . | . . . Knockbacks . | . . . Impact . | . . . Kinetic . | . . . Secondary . | . . . Self-Inflicted Damage 212 | . 37 175 Shots 7 | . 1 6 Rammed . | . . . Targets Rammed . | . . . Kicked . | . . . Crushed . | . . . Highest Temperature 37 | 20 12 37 Average Temperature 9 | 8 6 9 Received Heat Transfer 807 | . 60 747 Siege Activations . | . . . Martial Activations . | . . . Shielding Activations . | . . . Robots Disrupted . | . . . Combat Hostiles . | . . . Robots Corrupted . | . . . Combat Hostiles . | . . . Parts Fried . | . . . Impact Corruptions . | . . . Robots Melted . | . . . Combat Hostiles . | . . . Parts Melted . | . . . Heat Transferred 75 | 75 . . Parts Sabotaged . | . . . Parts Stolen . | . . . Parts Stripped . | . . . Power Chain Reactions . | . . . Alert | -11 -10 -9 ------- Run | Yrd Mat Mat Maximum Alert Level . | . . . Low Security (%) 100 | 100 100 100 Level 1 . | . . . Level 2 . | . . . Level 3 . | . . . Level 4 . | . . . Level 5 . | . . . High Security . | . . . Max Security . | . . . Peak Influence 190 | 5 190 183 Initial 66 | . . 66 Average 78 | . 100 94 Influence Increases 595 | 15 258 322 Destroy 0b10 Robot/C 180 | . 100 80 Destroy 0b10 Robot/NC 60 | 15 15 30 Destroy Leader 44 | . 22 22 Successful Hack 8 | . 8 . Disable Machine 105 | . 45 60 Destroy Structure 183 | . 68 115 Lose Combat Pursuer 15 | . . 15 Influence Decreases 567 | 15 100 452 Entered New Map 92 | . . 92 Time Decay 345 | 15 100 230 Lost Part 130 | . . 130 Squads Dispatched 3 | . 1 2 Investigation 1 | . 1 . Extermination . | . . . Reinforcement 2 | . . 2 Assault . | . . . Garrison . | . . . Intercept . | . . . Searches Triggered . | . . . Construction Impeded 1 | . . 1 Haulers Reinforced . | . . . Active Scanning Responses . | . . . Cargo Convoy Interrupts . | . . . Stealth | -11 -10 -9 --------- Run | Yrd Mat Mat Distress Signals 2 | . . 2 Communications Jammed . | . . . Distress Signals . | . . . Times Spotted 24 | . 6 18 Peak Tracking Total 9 | . 4 9 Tactical Retreats 1 | . . 1 Traps | -11 -10 -9 ------- Run | Yrd Mat Mat Traps Triggered 1 | . 1 . Indirectly . | . . . Trap Hack Attempts . | . . . Triggered . | . . . Disarmed . | . . . Reprogrammed . | . . . Reused . | . . . Traps Extracted . | . . . Installed . | . . . Triggered . | . . . Machines | -11 -10 -9 ---------- Run | Yrd Mat Mat Machines Disabled 7 | . 3 4 Max in Single Turn 2 | . 1 2 Machines Repaired . | . . . Machines Dismantled . | . . . Machines Sabotaged . | . . . Overloaded Fab Kills . | . . . Hacking | -11 -10 -9 --------- Run | Yrd Mat Mat Machines Accessed 4 | . 3 1 Terminals 2 | . 2 . Fabricators . | . . . Repair Stations . | . . . Recycling Units 1 | . 1 . Scanalyzers 1 | . . 1 Garrison Access . | . . . Total Hacks 7 | . 6 1 Successful 3 | . 2 1 Failed 4 | . 4 . Catastrophic 1 | . 1 . Database Lockouts . | . . . Manual . | . . . Terminals 4 | . 4 . Fabricators . | . . . Repair Stations . | . . . Recycling Units 2 | . 2 . Scanalyzers 1 | . . 1 Garrison Access . | . . . Terminal Hacks 1 | . 1 . Repair Station Index 1 | . 1 . Fabricator Hacks . | . . . Repair Station Hacks . | . . . Recycling Unit Hacks 1 | . 1 . Process 1 | . 1 . Scanalyzer 1 | . . 1 Retrieve Study 1 | . . 1 Garrison Access Hacks . | . . . Unauthorized Hacks . | . . . Terminals . | . . . Fabricators . | . . . Repair Stations . | . . . Recycling Units . | . . . Scanalyzers . | . . . Garrison Access . | . . . Data Cores Recovered . | . . . Used . | . . . Hacking Detections 2 | . 2 . Full Trace Events 1 | . 1 . Feedback Events . | . . . Feedback Blocked . | . . . Robot Schematics Acquired . | . . . Robots Built . | . . . Authchips . | . . . Time . | . . . Total Robot Build Rating . | . . . Part Schematics Acquired . | . . . Parts Built . | . . . Authchips . | . . . Time . | . . . Total Part Build Rating . | . . . Part Studies Acquired 1 | . . 1 Parts Repaired . | . . . Time . | . . . Parts Recycled . | . . . Recycled Matter 16 | . 16 . Retrieved Matter . | . . . Retrieved Components . | . . . Parts Scanalyzed . | . . . Part Schematics Acquired . | . . . Parts Damaged . | . . . Bothacking | -11 -10 -9 ------------ Run | Yrd Mat Mat Used RIF Installer . | . . . Robots Hacked . | . . . Non-combat . | . . . Combat . | . . . Robot Hacks Applied . | . . . Relay Couplers Released . | . . . Fabnet Peak Effective % . | . . . Robots Rewired . | . . . Allies Hacked . | . . . Hacks Repelled . | . . . Allies | -11 -10 -9 -------- Run | Yrd Mat Mat Total Allies . | . . . Largest Group . | . . . Highest-Rated Group . | . . . Highest-Rated Ally . | . . . Total Orders . | . . . Ally Attacks . | . . . Total Damage . | . . . Kills . | . . . Allies Corrupted . | . . . Allies Melted . | . . . Intel | -11 -10 -9 ------- Run | Yrd Mat Mat Active Infowar (turns) . | . . . Robot Analysis Total . | . . . Derelict Logs Recovered . | . . . Drone Launches . | . . . Drone Recoveries . | . . . Exploration | -11 -10 -9 ------------- Run | Yrd Mat Mat Turns Passed 958 | 179 297 482 Spaces Moved 438 | 90 142 206 Core 4 | 3 . 1 Treads 333 | 87 142 104 Legs . | . . . Wheels 101 | . . 101 Hover . | . . . Flight . | . . . Fastest Speed 50 | 50 160 140 Average Speed 176 | 156 160 196 Slowest Speed 1350 | 160 160 1350 Overloaded Moves . | . . . Propulsion Burnouts . | . . . Robots Hopped . | . . . Potential Cave-ins 4 | . . 4 Cave-ins Triggered . | . . . Exploration Rate (%) 24 | 6 39 29 Regions Visited 2 Branch Regions . Pre-discovered Areas . | . . . Known Exits Taken 1 | . 1 . Unknown Exits Taken 1 | 1 . . Scrap Searched . | . . . Spaces Dug 12 | . . 12 Terrain Destroyed 204 | . 73 131 Melee . | . . . Projectile . | . . . AOE 204 | . 73 131 Terrain Rammed . | . . . Walls Destroyed . | . . . Machines Disabled . | . . . Actions | -11 -10 -9 --------- Run | Yrd Mat Mat Total 552 | 109 187 256 Wait 28 | . 26 2 Move 436 | 89 141 206 Hop . | . . . Pick Up 19 | 6 2 11 Fast Attach 5 | 5 . . Attach 11 | . 2 9 Detach . | . . . Swap 9 | . 3 6 Drop 3 | . . 3 Fire 41 | 9 13 19 Melee . | . . . Ram . | . . . Kick . | . . . Crush . | . . . Escape Stasis . | . . . Rewire . | . . . Trap . | . . . Miscellaneous . | . . . Route ------- -11/Scrapyard -10/Materials -9/Materials History --------- Turn | Location | Event 17 | -11/Scrapyard | Discovered new exit (range 16) 180 | -11/Scrapyard | Entered Materials 316 | -10/Materials | Build established: Mutant 440 | -10/Materials | Discovered new exit (range 11) 464 | -10/Materials | Identified exit to Materials 477 | -10/Materials | Entered another Materials area 477 | -9/Materials | Evolved 2 slots: Propulsion x1, Utility x1 686 | -9/Materials | Lost 5 parts (2p2n1w) 936 | -9/Materials | Core integrity fell below 50% 957 | -9/Materials | Core integrity fell below 20% 959 | -9/Materials | Destroyed by Y-45 Defender with Beam Rifle Last Messages --------------- 00863_ Lgt. Treads destroyed. 00887_ U-05 Engineer lays Concrete. 00888_ Ion Engine destroyed. 00889_ U-05 Engineer builds a Wall. 00893_ U-05 Engineer lays Concrete. 00896_ U-05 Engineer builds a Wall. 00896_ U-05 Engineer lays Concrete. 00898_ U-05 Engineer builds a Wall. 00900_ U-05 Engineer lays Concrete. 00902_ U-05 Engineer builds a Wall. 00907_ U-05 Engineer lays Concrete. 00911_ U-05 Engineer builds a Wall. 00917_ Critical hit (Burn: +37). 00924_ U-05 Engineer lays Concrete. 00927_ Imp. Treads+ destroyed. 00927_ U-05 Engineer lays Concrete. 00938_ Lgt. Assault Rifle destroyed. 00943_ Particle Cannon destroyed. 00947_ Imp. Treads+ destroyed. 00947_ Lgt. Ion Engine destroyed. Map ----- +----------------------------------------------------+ | ?????????????????????????????????????? | | ?????????????????????????????????????? | | ?????????????????????????????????????? | | ?????????????????????????????????????? | | ?????????????????????????????????????? | | ?????????????????????????????????????? | | ?????????????????????????????????????? | | ?????????????????????????????????????? | | ?????????????????????????????????????? | | ?????????????????????????????????????? | | ?????????????????????????????????????? | | ?????????????????????????????????????? | | ?????????????????????????????????????? | | ?????###?# ??????????????????????????? | | ?????#[[ ???????+#?????????????????? | | ??????[[ ?????? ###???????????????? | | ??????** ????? #???????????????? | | ???????* ##### +???????????????? | | ???????? #???????????????? | | ????????? #???????????????? | | ?????????# "#???????????????? | | ?????????# T#????##?????????? | | ?????????# """" "#?### ########??? | | ?????????# """" # [ !!! #? ? | | ?????????# """" g g !!! #? | | ?????????+ @ # ! !! #? | | ?????????# g g Y g T ## | | ?????????# """" # k " | | ????????## """" #??#""""""""# | | ????????# """" #??# " # | | ????????# #### " # | | ????????# " # | | ????????# #### # # | | ????????# #??# # # | | ????????# #########??# ######## | | ????????# ???????????# """ #### | | ????????# ???????????# + | | ????????# ????????????#### ### | | ????????# ???????????????# # # | | ????????# ????????????????# ## # | | ??????????????????????????# ### | | ??????????????????????????## # ### # | | ????????????################ #### ## | | ????????????# # ! ###### | | ????????????#]] # | | ????????????#] / ## | | ????????????# # [ * # ## | | ????????????#! # [ # # ### | | ????????#########/### [ ##+#?? | | ????????# # ## # | +----------------------------------------------------+ Best States ------------- Heat Dissipation 28 Energy Generation 12 Energy Capacity 265 Matter Stores 300 Matter Capacity 300 Sight Range 16 Terrain Scan Density 10 Evasion (%) 40 Targeting Accuracy 5 Recoil Reduction 3 Item Schematics ----------------- None Robot Schematics ------------------ None Fabricated ------------ Nothing Repaired ---------- Nothing Studied --------- Imp. Treads | -9/Materials | Hacked Alien Tech Used ----------------- None Achievements -------------- None Challenges ------------ None Game ------ Seed CarbideContainmentCanceller Manual? 0 Play Time 00:10:48 Cumulative 4.5 hours Start 2026.01.25 @ 15:39:17 End 2026.01.25 @ 15:50:43 Sessions 1 Manual Loads 0 Difficulty Rogue Special Mode None Game No. 8 Rogue 7 Adventurer 1 Explorer 0 Win Type - Total 0 Types 0/0/0/0/0/0/0/0/0/0 Lore% 6 Gallery% 8 Achievement% 7 Wizard Run 0 Options --------- Layout 1 ASCII 0 Keyboard 0 Movement Numpad Keybinds 0 Fullscreen 1 Font 32/SmallcapsGlow Map View 50x35 Zoom Use 0% Tactical HUD 1 Map Filters NONE Filters NONE Steam 1 RUN: 04448630-8ff6-4f94-89d5-124351b03371